fUST/lending_fUST_20240412
["ID","MTS","AMOUNT","RATE_DAILY","PERIOD"]
[322286700,1712933448421,-500.0,0.0005863,120]
[322286702,1712933448431,-500.0,0.0005863,120]
[322286704,1712933448442,-2212.62,0.0005863,120]
[322286706,1712933448452,-500.0,0.0005863,120]
[322286708,1712933448462,-1750.03,0.0005863,120]
[322286710,1712933448471,-849.45,0.0005863,120]
[322286712,1712933448481,-504.864169,0.0005863,120]
[322286714,1712933448490,-500.0,0.0005863,120]
[322286716,1712933448499,-1379.21,0.0005863,120]
[322286718,1712933448508,-500.0,0.0005863,120]
[322286720,1712933448521,-500.0,0.0005863,120]
[322286722,1712933448531,-1779.63,0.0005863,120]
[322286724,1712933448541,-500.0,0.0005863,120]
[322286726,1712933448550,-500.0,0.0005863,120]
[322286728,1712933448559,-500.0,0.0005863,120]
[322286730,1712933448568,-500.0,0.0005863,120]
[322286732,1712933448579,-500.0,0.0005863,120]
[322286734,1712933448587,-1013.83,0.0005863,120]
[322286736,1712933448597,-2158.25,0.0005863,120]
[322286738,1712933448606,-845.8,0.0005863,120]
[322286739,1712933448616,-1215.82,0.0005863,120]
[322286741,1712933448625,-500.0,0.0005863,120]
[322286743,1712933448635,-500.0,0.0005863,120]
[322286745,1712933448647,-500.0,0.0005863,2]
[322286747,1712933448656,-1514.16,0.0005863,120]
[322286749,1712933448666,-166.912584,0.00058708,2]
[322286751,1712933448675,-9847.64985114,0.000599,120]
[322286753,1712933448685,-422.11724782,0.00059999,120]
[322286755,1712933448695,-153.29107816,0.00059999,7]
[322286757,1712933448705,-71000.0,0.0006,120]
[322286759,1712933448714,-5001.45479163,0.0006,120]
[322286761,1712933448723,-544.70703,0.0006,120]
[322286763,1712933448734,-158.495559,0.00060274,2]
[322286765,1712933448743,-500.0,0.00060547,120]
[322286767,1712933448753,-628.21,0.00060547,120]
[322286769,1712933448762,-421.88630162,0.00060547,120]
[322286770,1712933448774,-500.0,0.00060547,120]
[322286772,1712933448783,-500.0,0.00060547,120]
[322286774,1712933448792,-79.18041709,0.00060547,120]
[322286783,1712933448878,-421.76428291,0.00060547,120]
[322286784,1712933448889,-500.0,0.00060547,120]
[322286785,1712933448898,-500.0,0.00060547,120]
[322286786,1712933448908,-500.0,0.00060547,120]
[322286787,1712933448917,-500.0,0.00060547,120]
[322286788,1712933448927,-500.0,0.00060547,120]
[322286789,1712933448936,-500.0,0.00060547,120]
[322286790,1712933448945,-756.0,0.00060547,120]
[322286791,1712933448955,-500.0,0.00060547,120]
[322286792,1712933448964,-611.17876315,0.00060547,120]
[322286793,1712933448972,-500.0,0.00060547,120]
[322286794,1712933448981,-500.0,0.00060547,120]
[322286795,1712933448991,-557.96,0.00060547,7]
[322286796,1712933449000,-500.0,0.00060547,120]
[322286797,1712933449009,-500.0,0.00060547,120]
[322286798,1712933449020,-500.0,0.00060547,120]
[322286799,1712933449030,-273.68530305,0.00060547,120]
[322286821,1712933449259,-345.66,0.0002414,2]
[322286836,1712933449395,-179.41637197,0.0002414,2]
[322286838,1712933449404,-153.0,0.00035671,2]
[322286840,1712933449414,-153.0,0.00035918,2]
[322286842,1712933449423,-227.40488797,0.00036495,4]
[322286844,1712933449433,-194.48017785,0.00036495,4]
[322286846,1712933449442,-226.31469695,0.00060547,120]
[322286848,1712933449451,-500.0,0.00060547,120]
[322286850,1712933449460,-151.0,0.00060547,120]
[322286852,1712933449469,-500.0,0.00060547,120]
[322286854,1712933449479,-500.0,0.00060547,120]
[322286855,1712933449489,-500.0,0.00060547,120]
[322286857,1712933449499,-500.0,0.00060547,120]
[322286860,1712933449509,-27.28025592,0.00060547,120]
[322286872,1712933449626,154.9690062,0.00022937,2]
[322287590,1712933486415,160.61525693,0.00024044,2]
[322287592,1712933545787,24900.0,0.00023137,2]
[322287612,1712933632010,15960.61830938,0.0002,2]
[322287614,1712933658548,2999.70533759,0.000125,2]
[322287615,1712933671418,183.49001289,0.000191,2]
[322287618,1712933676681,3354.10770214,0.00021,2]
[322287620,1712933691538,832.08391957,0.00024044,2]
[322287621,1712933691809,166.001299,0.00024022,2]
[322287625,1712933791139,175.6200483,0.00023133,2]
[322287628,1712933811385,182.96331992,0.00024021,2]
[322287632,1712933874642,250.0,0.00023129,2]
[322287644,1712934012011,728.07342965,0.00024044,2]
[322287646,1712934043573,24900.0,0.00023127,2]
[322287648,1712934118868,500.05459242,0.00024101,2]
[322287649,1712934124218,197.55061894,0.00023127,2]
[322287650,1712934126006,470.34138776,0.00024101,2]
[322287651,1712934126828,254.17932287,0.00023127,2]
[322287652,1712934129884,254.35963097,0.00023127,2]
[322287653,1712934134558,155.10744807,0.00023127,2]
[322287654,1712934135644,4033.07250806,0.000281,12]
[322287655,1712934135999,154.86062544,0.00024101,2]
[322287656,1712934137947,418.40163203,0.00023127,2]
[322287657,1712934143441,1931.90571888,0.00024101,2]
[322287658,1712934144196,2937.70369238,0.00024101,2]
[322287659,1712934146175,361.13014743,0.00024101,2]
[322287660,1712934148290,282.52694059,0.00024101,2]
[322287661,1712934152418,207.39373908,0.00024101,2]
[322287662,1712934152450,549.11981524,0.00024101,2]
[322287663,1712934153022,936.73565596,0.00024101,2]
[322287664,1712934153344,188.75485878,0.00024101,2]
[322287665,1712934153610,215.92726216,0.00024101,2]
[322287666,1712934155009,601.81614276,0.00024101,2]
[322287667,1712934156304,6912.93110096,0.00024101,2]
[322287668,1712934159145,436.03764798,0.00024101,2]
[322287669,1712934159201,1965.39904468,0.00024101,2]
[322287670,1712934160555,2122.71055525,0.00024101,2]
[322287671,1712934162011,407.97119397,0.00024101,2]
[322287672,1712934162193,158.62437047,0.00024101,2]
[322287673,1712934162713,2581.83470807,0.00024101,2]
[322287674,1712934164415,154.86062544,0.00024101,2]
[322287675,1712934165169,3738.27761337,0.00024101,2]
[322287676,1712934165687,277.24658734,0.00024101,2]
[322287677,1712934168609,1854.77424007,0.00024101,2]
[322287679,1712934180374,707.12133678,0.00024101,5]
[322287686,1712934266395,172.103961,0.00022861,2]
[322287687,1712934288574,200.0,0.00023134,2]
[322287688,1712934299973,508.448541,0.00023133,2]
[322287690,1712934370843,8196.2676187,0.0002313,2]
[322287691,1712934377171,59022.10944715,0.00023129,2]
[322287692,1712934400023,154.90705577,0.00023133,2]
[322287693,1712934401915,225.72728762,0.00023133,2]
[322287694,1712934404239,385.03819322,0.00023133,2]
[322287699,1712934441117,-250.0,0.00024108,2]
[322287700,1712934441139,-2094.57281327,0.00024109,2]
[322287701,1712934441160,-300.0,0.0002411,2]
[322287702,1712934441181,-300.0,0.0002411,2]
[322287703,1712934441201,-1012.74573868,0.0002411,2]
[322287707,1712934484981,236.6715934,0.00028,12]
[322287709,1712934504393,925.5318754,0.00024101,2]
[322287710,1712934505252,154.86062544,0.00024101,2]
[322287711,1712934505663,467.23792428,0.00024101,2]
[322287712,1712934511304,887.37861442,0.00024101,2]
[322287713,1712934513019,1308.46081651,0.00024101,2]
[322287714,1712934514639,242.92908465,0.00024101,2]
[322287715,1712934516080,225.63849083,0.00024101,2]
[322287716,1712934519654,5787.41581827,0.00024101,2]
[322287717,1712934524168,540.42104843,0.00022001,2]
[322287718,1712934524200,687.6463722,0.00024101,2]
[322287719,1712934527997,326.62746288,0.00024101,2]
[322287720,1712934530538,874.98344823,0.00024101,2]
[322287721,1712934531040,154.86062544,0.00024101,2]
[322287722,1712934531092,875.47790871,0.00024101,2]
[322287723,1712934531969,364.86423922,0.00024101,2]
[322287724,1712934532204,846.94084737,0.0002401,2]
[322287725,1712934532597,211.55365242,0.00024101,2]
[322287726,1712934534540,185.73445743,0.00024101,2]
[322287727,1712934535624,24900.0,0.00023334,2]
[322287728,1712934536605,518.66999202,0.00024101,2]
[322287729,1712934545813,1019.41453281,0.00024005,2]
[322287730,1712934586662,573.025286,0.0002327,2]
[322287731,1712934615079,470.34138776,0.00024101,2]
[322287733,1712934623396,407.97119397,0.00024101,2]
[322287778,1712934633734,1965.39904468,0.00024101,2]
[322287779,1712934634908,500.05459242,0.00024101,2]
[322287826,1712934638053,-154.86062544,0.00024102,2]
[322287827,1712934638063,-277.24658734,0.00024102,2]
[322287828,1712934638072,-1671.78403731,0.00024102,2]
[322287829,1712934638082,-2122.71055525,0.00024102,2]
[322287830,1712934638091,-154.86062544,0.00024102,2]
[322287831,1712934638102,-1854.77424007,0.00024102,2]
[322287832,1712934638111,-549.11981524,0.00024103,2]
[322287833,1712934638121,-601.81614276,0.00024103,2]
[322287834,1712934638135,-300.0,0.00024103,2]
[322287835,1712934638144,-436.03764798,0.00024103,2]
[322287836,1712934638154,-300.0,0.00024103,2]
[322287837,1712934638164,-2937.70369238,0.00024104,2]
[322287838,1712934638173,-5686.31545278,0.00024104,2]
[322287840,1712934638553,-17074.76170125,0.00024104,2]
[322287841,1712934638564,-207.39373908,0.00024104,2]
[322287843,1712934638573,-282.52694059,0.00024105,2]
[322287844,1712934638583,-361.13014743,0.00024105,2]
[322287845,1712934638592,-936.73565596,0.00024105,2]
[322287846,1712934638602,-1931.90571888,0.00024105,2]
[322287847,1712934638612,-218.0301263,0.0002411,2]
[322287848,1712934638621,-4557.72361221,0.0002411,2]
[322287849,1712934638630,-552.30704975,0.00024128,2]
[322287850,1712934638639,-446.75242115,0.00024133,2]
[322287851,1712934638649,-433.45838041,0.00024142,2]
[322287852,1712934638658,-328.64804309,0.00024589,2]
[322287853,1712934638667,-220.30796474,0.00025,2]
[322287854,1712934638677,-724.34732689,0.00025,2]
[322287855,1712934638686,-924.03970052,0.00025,2]
[322287856,1712934638696,-156.87945876,0.00025,2]
[322287857,1712934638705,-2300.37815036,0.000255,4]
[322287858,1712934638716,-500.0,0.00026019,2]
[322287859,1712934638726,-235.71051644,0.00026019,2]
[322287860,1712934638735,-420.0,0.00026136,2]
[322287861,1712934638745,-420.0,0.00026513,2]
[322287862,1712934638755,-6912.93110096,0.00026519,2]
[322287863,1712934638764,-8144.96473121,0.00027,2]
[322287864,1712934638774,-13636.37733717,0.00027,2]
[322287865,1712934638783,-540.42104843,0.00027001,2]
[322287866,1712934638793,-328.64804305,0.00027166,2]
[322287867,1712934638802,-459.76889401,0.00027396,2]
[322287868,1712934638812,-313.75026018,0.00027396,2]
[322287869,1712934638822,-267.47448772,0.00027396,2]
[322287870,1712934638832,-384.793417,0.00027397,2]
[322287871,1712934638841,-259.075202,0.00027397,2]
[322287872,1712934638851,-162.806243,0.00027397,2]
[322287873,1712934638860,-172.043883,0.00027397,2]
[322287874,1712934638870,-754.55579857,0.000274,2]
[322287875,1712934638880,-973.1152521,0.000274,2]
[322287876,1712934638889,-641.44322107,0.0002742,2]
[322287877,1712934638899,-13341.79131447,0.000275,2]
[322287878,1712934638908,-846.9408473,0.00027709,3]
[322287879,1712934638921,-162.806243,0.00028038,2]
[322287880,1712934638931,-153.41969524,0.00028044,2]
[322287881,1712934638940,-587.0,0.0002834,2]
[322287882,1712934638950,-162.806243,0.00028679,2]
[322287883,1712934638959,-429.33714796,0.0002877,2]
[322287884,1712934638970,-621.07216105,0.00028791,2]
[322287885,1712934638979,-587.0,0.00029165,2]
[322287889,1712934639094,-162.806243,0.00029321,2]
[322287890,1712934639103,-328.64804305,0.00029744,2]
[322287893,1712934639115,-1230.51077854,0.0002978,10]
[322287895,1712934639126,-162.806243,0.00029962,2]
[322287897,1712934639136,-232.13941662,0.00029999,2]
[322287899,1712934639145,-177.72211746,0.00029999,2]
[322287900,1712934639154,-313.30093401,0.00029999,2]
[322287902,1712934639165,-645.48207347,0.00029999,2]
[322287904,1712934639174,-13807.88155482,0.0003,5]
[322287906,1712934639183,-25815.1921255,0.0003,7]
[322287908,1712934639192,-250.0,0.00030602,2]
[322287910,1712934639203,-162.806243,0.00030603,2]
[322287912,1712934639213,-2814.20531534,0.00030729,4]
[322287914,1712934639222,-823.0,0.0003073,2]
[322287916,1712934639231,-846.9408473,0.00031407,5]
[322287918,1712934639240,-1211.03128397,0.00032,5]
[322287920,1712934639250,-1210.91030182,0.00032,5]
[322287922,1712934639259,-540.42104843,0.00032001,2]
[322287924,1712934639268,-823.0,0.00032081,2]
[322287926,1712934639277,-328.64804305,0.00032321,2]
[322287928,1712934639286,-696.86947104,0.00033162,4]
[322287930,1712934639295,-923.9010759,0.00033163,4]
[322287932,1712934639305,-303.16112011,0.00033163,4]
[322287934,1712934639314,-627.76688483,0.00033164,4]
[322287936,1712934639323,-384.793417,0.00033165,2]
[322287938,1712934639332,-259.075202,0.00033165,2]
[322287940,1712934639343,-7775.79860421,0.00033243,4]
[322287942,1712934639352,-317.48131903,0.00033244,4]
[322287944,1712934639360,-990.0,0.00033321,2]
[322287946,1712934639369,-1211.03128397,0.0003392,5]
[322287948,1712934639378,-986.48622086,0.0003392,5]
[322287950,1712934639387,-465.00692251,0.0003403,4]
[322287952,1712934639396,-233.30270751,0.00034648,7]
[322287955,1712934639406,-631.93660544,0.00034697,4]
[322287957,1712934639416,-548.13788057,0.00034697,4]
[322287959,1712934639425,-154.89160063,0.00034697,4]
[322287961,1712934639433,-79300.33898849,0.00034699,4]
[322287962,1712934639443,-508.448541,0.000347,2]
[322287964,1712934639452,-306.0,0.00034849,2]
[322287966,1712934639462,-328.64804305,0.00034898,2]
[322287969,1712934639471,-1043.5168995,0.00034959,4]
[322287970,1712934639480,-503.90345578,0.0003499,4]
[322287972,1712934639491,-326.5518248,0.0003499,4]
[322287974,1712934639500,-155.39083371,0.0003499,2]
[322287975,1712934639509,-371.58836269,0.0003499,4]
[322287976,1712934639518,-211.17325712,0.00034991,4]
[322287979,1712934639527,-158997.17328713,0.00034992,5]
[322287981,1712934639536,-1469.90088165,0.00034993,4]
[322287983,1712934639545,-3293.28998897,0.00034993,4]
[322287985,1712934639555,-1560.15706444,0.00034993,4]
[322287987,1712934639564,-192.59381151,0.00034993,4]
[322287989,1712934639573,-886.65931618,0.00034993,4]
[322287991,1712934639582,-1308.15892502,0.00034993,4]
[322287993,1712934639591,-242.80588087,0.00034993,4]
[322287995,1712934639600,-497.12401116,0.00034993,4]
[322287997,1712934639609,-587.84883221,0.00034993,4]
[322287999,1712934639618,-309.6903097,0.00034994,4]
[322288000,1712934639627,-269.3326566,0.00034994,4]
[322288002,1712934639636,-154.86062544,0.00034994,4]
[322288005,1712934639645,-1516.02663077,0.00034995,4]
[322288007,1712934639655,-154.87609912,0.00034996,4]
[322288009,1712934639664,-154.90705577,0.00034996,4]
[322288011,1712934639673,-156.03527958,0.00034996,4]
[322288013,1712934639682,-309.65937468,0.00034998,4]
[322288015,1712934639691,-400.0,0.00034998,2]
[322288017,1712934639701,-522.7857071,0.00034998,4]
[322288019,1712934639710,-155.0404763,0.00034998,4]
[322288021,1712934639719,-309.70578646,0.00034998,4]
[322288023,1712934639728,-157.34709437,0.00034998,4]
[322288025,1712934639738,-2305.1347894,0.00034998,120]
[322288027,1712934639747,-156.08474154,0.00034998,4]
[322288029,1712934639756,-156.63566121,0.00034998,4]
[322288031,1712934639765,-2800.33075209,0.00034998,7]
[322288033,1712934639774,-172.37493064,0.00034998,4]
[322288035,1712934639783,-291.21112731,0.00034998,4]
[322288037,1712934639793,-158.48782423,0.00034998,4]
[322288039,1712934639802,-2611.68630811,0.00034998,4]
[322288041,1712934639811,-6852.23893426,0.00035,4]
[322288043,1712934639821,-156.81021792,0.00035,4]
[322288045,1712934639830,-186.12879623,0.00035,30]
[322288046,1712934639839,-26607.99126198,0.00035,7]
[322288048,1712934639848,-596.49961109,0.00035,2]
[322288050,1712934639858,-846.9408473,0.00035106,7]
[322288052,1712934639867,-1152.0,0.00035289,2]
[322288054,1712934639876,-400.0,0.00035616,2]
[322288056,1712934639886,-218.42945926,0.0003567,4]
[322288058,1712934639895,-1470.04489459,0.0003567,4]
[322288060,1712934639904,-1332.13441236,0.0003584,9]
[322288062,1712934639914,-154.86062544,0.0003589,2]
[322288064,1712934639924,-255.75303422,0.0003624,2]
[322288066,1712934639936,-1928.46497454,0.0003661,2]
[322288068,1712934639945,-247.0,0.0003668,35]
[322288070,1712934639954,-247.0,0.0003669,35]
[322288073,1712934639965,-166.00129889,0.000367,2]
[322288074,1712934639974,-215.564974,0.000367,22]
[322288076,1712934639983,-247.0,0.000367,35]
[322288078,1712934639992,-250.0,0.0003671,14]
[322288080,1712934640002,-250.0,0.0003671,28]
[322288082,1712934640011,-2690072.81713165,0.0003671,60]
[322288087,1712934640044,2581.83470807,0.00024101,2]
[322288091,1712934640075,188.75485878,0.00024101,2]
[322288100,1712934640158,-1597.24047155,0.0003671,60]
[322288106,1712934640218,-25889.95062373,0.0003671,60]
[322288109,1712934640229,-24709.27963655,0.0003671,60]
[322288390,1712934646288,-2640.65130763,0.00034697,4]
[322288391,1712934646298,-11303.73636393,0.0003671,60]
[322288393,1712934649736,200.42526802,0.00024005,2]
[322288394,1712934658132,217.11413576,0.00024101,2]
[322288395,1712934708503,300.0,0.00024101,2]
[322288396,1712934710822,346.57817207,0.00024101,2]
[322288411,1712935180284,503.5914787,0.00023891,2]
[322288413,1712935223578,357.65520002,0.000281,12]
[322288416,1712935267060,176.155045,0.00023606,2]
[322288417,1712935303669,1000.0,0.000281,12]
[322288418,1712935373553,477.921915,0.00023876,2]
[322288419,1712935384810,250.0,0.00023758,2]
[322288420,1712935394049,200.0,0.00023746,2]
[322288421,1712935540304,24900.0,0.00023731,2]
[322288422,1712935642191,-207.39373908,0.00024524,2]
[322288423,1712935642215,-936.73565596,0.00024524,2]
[322288424,1712935642239,-154.86062544,0.00024524,2]
[322288425,1712935642400,-154.86062544,0.00024524,2]
[322288426,1712935642424,-687.6463722,0.00024525,2]
[322288427,1712935642446,-601.81614276,0.00024525,2]
[322288428,1712935642467,-436.03764798,0.00024526,2]
[322288429,1712935642488,-250.0,0.00024527,2]
[322288430,1712935642511,-188.75485878,0.00024527,2]
[322288431,1712935642533,-2657.56645808,0.00024527,2]
[322288432,1712935730201,150.0,0.00022427,2]
[322288511,1712935838241,-1965.39904468,0.00024506,2]
[322288512,1712935838251,-407.97119397,0.00024506,2]
[322288513,1712935838260,-1931.90571888,0.00024507,2]
[322288514,1712935838270,-2937.70369238,0.00024508,2]
[322288515,1712935838281,-2094.57281327,0.00024508,2]
[322288516,1712935838290,-563.18202203,0.00024509,2]
[322288517,1712935838300,-467.23792428,0.0002451,2]
[322288519,1712935838309,-260.52844265,0.0002451,2]
[322288520,1712935838318,-518.66999202,0.0002451,2]
[322288521,1712935838328,-518.66999202,0.0002451,2]
[322288522,1712935838337,-518.66999202,0.0002451,2]
[322288523,1712935838347,-518.66999202,0.0002451,2]
[322288524,1712935838356,-518.66999202,0.0002451,2]
[322288525,1712935838365,-300.0,0.00024511,2]
[322288526,1712935838374,-300.0,0.00024511,2]
[322288527,1712935838384,-5570.46935089,0.00024512,2]
[322288528,1712935838393,-708.50128342,0.00024514,2]
[322288529,1712935838402,-20103.51069595,0.00024527,2]
[322288530,1712935838411,-380.0,0.00024658,2]
[322288531,1712935838420,-785.18771344,0.000249,2]
[322288532,1712935838430,-156.87945876,0.00025,2]
[322288533,1712935838439,-924.03970052,0.0002529,2]
[322288534,1712935838449,-2300.37815036,0.000255,4]
[322288535,1712935838459,-420.0,0.00026567,2]
[322288536,1712935838468,-420.0,0.00026962,2]
[322288537,1712935838485,-228.355413,0.00027397,2]
[322288538,1712935838494,-158.495559,0.00027397,2]
[322288539,1712935838503,-166.6666685,0.00027397,2]
[322288540,1712935838515,-233.47728699,0.000274,2]
[322288543,1712935838526,-150.0,0.00027427,2]
[322288545,1712935838535,-4531.97283719,0.00028072,2]
[322288547,1712935838545,-220.30796474,0.000281,2]
[322288550,1712935838554,-526.0,0.00028795,2]
[322288552,1712935838564,-587.0,0.00029658,2]
[322288553,1712935838574,-209.0,0.0003,2]
[322288555,1712935838583,-585.84712781,0.000314,4]
[322288557,1712935838593,-808.58214958,0.00031401,4]
[322288558,1712935838602,-173.022555,0.00031402,2]
[322288559,1712935838611,-2000.0,0.000315,2]
[322288560,1712935838621,-2000.0,0.0003151,2]
[322288561,1712935838630,-2000.0,0.0003152,2]
[322288562,1712935838640,-3798.354868,0.0003153,2]
[322288563,1712935838650,-1211.03128397,0.00032,5]
[322288564,1712935838659,-250.0,0.00032425,2]
[322288565,1712935838668,-150.0,0.00032427,2]
[322288566,1712935838678,-823.0,0.00032624,2]
[322288567,1712935838688,-228.355413,0.00033165,2]
[322288568,1712935838697,-1211.03128397,0.0003392,5]
[322288569,1712935838707,-465.00692251,0.00034999,4]
[322288570,1712935838717,-596.49961109,0.00035,2]
[322288571,1712935838730,-6861.21270692,0.00035613,4]
[322288572,1712935838739,-644.87902618,0.00035614,4]
[322288573,1712935838749,-272.54994344,0.00035614,4]
[322288574,1712935838759,-383.58976797,0.00035614,4]
[322288575,1712935838768,-450.52878214,0.00035614,4]
[322288576,1712935838778,-182.09442878,0.00035614,4]
[322288577,1712935838788,-355.32131281,0.00035614,2]
[322288578,1712935838799,-875.47790871,0.00035614,4]
[322288579,1712935838808,-242.92908465,0.00035614,4]
[322288580,1712935838817,-276.63517435,0.00035615,7]
[322288581,1712935838826,-400.0,0.00035616,2]
[322288582,1712935838836,-3728.964104,0.00035616,120]
[322288583,1712935838845,-477.921915,0.00035813,2]
[322288584,1712935838856,-1332.13441236,0.0003584,9]
[322288585,1712935838865,-1152.0,0.00035887,2]
[322288586,1712935838875,-154.86062544,0.0003589,2]
[322288587,1712935838884,-306.78991651,0.00036,120]
[322288588,1712935838894,-150.8642222,0.00036147,2]
[322288589,1712935838903,-1928.46497454,0.0003641,2]
[322288590,1712935838912,-3609.0,0.00036477,35]
[322288591,1712935838921,-277.0,0.00036477,35]
[322288592,1712935838930,-275.4,0.00036477,35]
[322288593,1712935838939,-251.11,0.00036477,35]
[322288594,1712935838949,-266.0,0.00036477,35]
[322288595,1712935838959,-3609.0,0.00036487,35]
[322288596,1712935838970,-277.0,0.00036487,35]
[322288597,1712935838980,-150.5,0.00036487,35]
[322288598,1712935838990,-150.5,0.00036487,35]
[322288599,1712935838999,-266.0,0.00036487,35]
[322288600,1712935839010,-277.0,0.00036497,35]
[322288601,1712935839020,-3609.0,0.00036497,35]
[322288602,1712935839029,-150.5,0.00036497,35]
[322288603,1712935839039,-150.5,0.00036497,35]
[322288604,1712935839048,-266.0,0.00036497,35]
[322288605,1712935839058,-226.64,0.00036503,2]
[322288606,1712935839068,-226.64,0.00036503,2]
[322288607,1712935839079,-226.64,0.00036503,2]
[322288608,1712935839088,-226.64,0.00036503,2]
[322288609,1712935839098,-226.64,0.00036503,2]
[322288610,1712935839107,-226.64,0.00036503,2]
[322288611,1712935839116,-226.64,0.00036503,2]
[322288612,1712935839125,-226.64,0.00036503,2]
[322288613,1712935839134,-226.64,0.00036503,2]
[322288614,1712935839144,-226.64,0.00036503,2]
[322288615,1712935839154,-89983.58664356,0.00036504,5]
[322288616,1712935839163,-408.01951387,0.00036504,4]
[322288617,1712935839172,-276.06676414,0.00036504,4]
[322288618,1712935839182,-190.72501436,0.00036504,4]
[322288619,1712935839191,-155.60551149,0.00036504,4]
[322288620,1712935839201,-245.68583844,0.00036504,4]
[322288621,1712935839210,-155.25769941,0.00036504,4]
[322288622,1712935839221,-244.09537429,0.00036504,4]
[322288623,1712935839230,-669.10203133,0.00036504,4]
[322288624,1712935839239,-248.89817661,0.00036504,4]
[322288625,1712935839248,-202.57348486,0.00036504,30]
[322288626,1712935839257,-201.21352914,0.00036504,4]
[322288627,1712935839266,-218.42945926,0.00036504,4]
[322288628,1712935839275,-154.84515485,0.00036504,4]
[322288629,1712935839285,-156.81021792,0.00036504,4]
[322288630,1712935839294,-3588818.89108927,0.00036504,60]
[322288631,1712935839308,-3170.34988966,0.00036504,60]
[322288654,1712935840418,-2122.71055525,0.00024505,2]
[322288655,1712935840428,-225.63849083,0.00024505,2]
[322288656,1712935840438,-1258.56997921,0.000314,4]
[322288657,1712935840447,-1666.12134731,0.00035616,2]
[322288682,1712935843452,-250.0,0.000314,2]
[322288683,1712935843462,-1672.89707501,0.00035616,2]
[322288756,1712935870900,162.41425573,0.00022427,2]
[322288759,1712936473516,1509.0,0.000281,12]
[322288783,1712936851182,-260.52844265,0.00024405,2]
[322288784,1712936851203,-563.18202203,0.00024405,2]
[322288785,1712936851224,-601.81614276,0.00024405,2]
[322288786,1712936851245,-832.90088298,0.00024406,2]
[322288794,1712937027140,24900.0,0.0002343,2]
[322288795,1712937028573,200.0,0.00024658,15]
[322288839,1712937033336,-1931.90571888,0.0002439,2]
[322288840,1712937033346,-500.0,0.00024391,2]
[322288841,1712937033355,-407.97119397,0.00024392,2]
[322288842,1712937033364,-2122.71055525,0.00024392,2]
[322288843,1712937033374,-467.23792428,0.00024393,2]
[322288844,1712937033383,-300.0,0.00024393,2]
[322288845,1712937033393,-2094.57281327,0.00024393,2]
[322288846,1712937033402,-300.0,0.00024393,2]
[322288847,1712937033412,-5570.46935089,0.00024394,2]
[322288848,1712937033421,-260.52844265,0.00024394,2]
[322288849,1712937033430,-265.46838124,0.00024394,2]
[322288850,1712937033443,-2672.23531114,0.00024394,2]
[322288853,1712937033452,-188.75485878,0.00024394,2]
[322288855,1712937033461,-436.03764798,0.00024394,2]
[322288857,1712937033470,-601.81614276,0.00024394,2]
[322288859,1712937033480,-22761.07715403,0.00024395,2]
[322288861,1712937033489,-529.33802958,0.00024416,2]
[322288863,1712937033498,-785.18771344,0.00024516,2]
[322288864,1712937033508,-424.348037,0.00024621,2]
[322288866,1712937033518,-380.0,0.00024658,2]
[322288867,1712937033527,-156.87945876,0.00025,2]
[322288868,1712937033536,-924.03970052,0.0002529,2]
[322288869,1712937033545,-2300.37815036,0.000255,4]
[322288871,1712937033554,-439.34266541,0.00026,2]
[322288873,1712937033564,-420.0,0.00026442,2]
[322288875,1712937033573,-420.0,0.00026832,2]
[322288877,1712937033582,-4531.97283719,0.00027,2]
[322288879,1712937033591,-300.115711,0.00027397,2]
[322288881,1712937033600,-166.666666,0.00027397,2]
[322288883,1712937033609,-233.47728699,0.000274,2]
[322288885,1712937033619,-620.64776529,0.00027507,2]
[322288887,1712937033629,-264.34881452,0.00028437,7]
[322288889,1712937033638,-407.87381575,0.00028438,2]